Cogmind - Beta 14 @@@ ROGUE MODE // 2024.12.01 @ 21:07:20 Player: Shimmyarah Result: Destroyed by G-47 Trooper with Particle Gun Performance ------------- Evolutions (2) 1000 Regions Visited (4) 800 Robots Destroyed (21) 105 Value Destroyed (422) 422 Prototype IDs (0) 0 Alien Tech Used (0) 0 Bonus (0) 0 TOTAL SCORE: 2327 Bonus ------- None Cogmind --------- Core Integrity 0/550 Matter 300/300 Energy 100/100 System Corruption 0% Temperature Cool (9) Movement Core (50) Location -8/Materials Parts ------- > --- POWER (1) -------- (None) > --- PROPULSION (4) --- (None) > --- UTILITY (3) ------ (None) > --- WEAPON (3) ------- (None) > --- INVENTORY (5) ---- Compact Wheel Flight Unit Minigun Mace Peak State ------------ > --- POWER ------------ (None) > --- PROPULSION ------- Advanced Treads Advanced Treads Advanced Treads Advanced Treads > --- UTILITY ---------- Melee Analysis Suite Improved Weapon Shielding > --- WEAPON ----------- Subdweller Machine Gun Minigun Makeshift Hammer > --- INVENTORY -------- Compact Wheel Compact Wheel Flight Unit Improved Targeting Computer Mace [Rating: 27] Favorites ----------- Power Light Ion Engine Engine Light Ion Engine Propulsion Flight Unit Treads Advanced Treads Leg Aluminum Leg Wheel Wheel Flight Unit Flight Unit Utility Improved Terrain Scanner Device Improved Terrain Scanner Storage Small Storage Unit Processor Melee Analysis Suite Protection Improved Weapon Shielding Weapon Light Assault Rifle Ballistic Gun Light Assault Rifle Ballistic Cannon Battle Cannon Impact Weapon Makeshift Hammer Build | -11 -10 -10 -10 -8 ------- Run | Yrd Mat Min Sub Mat Slots Evolved 4 | . . . . 4 Power . | . . . . . Propulsion 2 | . . . . 2 Utility 1 | . . . . 1 Weapon 1 | . . . . 1 Parts Attached 46 | 2 5 2 17 20 Power . | . . . . . Engine . | . . . . . Core . | . . . . . Reactor . | . . . . . Propulsion 15 | . 4 . 2 9 Treads 6 | . . . . 6 Leg . | . . . . . Wheel 3 | . 1 . . 2 Hover . | . . . . . Flight 6 | . 3 . 2 1 Utility 8 | 2 1 . . 5 Device 4 | 2 1 . . 1 Storage . | . . . . . Processor 3 | . . . . 3 Hackware . | . . . . . Protection 1 | . . . . 1 Artifact . | . . . . . Weapon 23 | . . 2 15 6 Energy Gun . | . . . . . Energy Cannon . | . . . . . Ballistic Gun 11 | . . 1 8 2 Ballistic Cannon 6 | . . . 6 . Launcher . | . . . . . Special Weapon . | . . . . . Impact Weapon 6 | . . 1 1 4 Slashing Weapon . | . . . . . Piercing Weapon . | . . . . . Special Melee Weapon . | . . . . . Unidentified Prototypes . | . . . . . Parts Lost 17 | . . . 9 8 Power 1 | . . . 1 . Propulsion 7 | . . . 3 4 Utility 6 | . . . 2 4 Weapon 3 | . . . 3 . Highest Loss Streak 6 | . . . 6 5 To Critical Strikes . | . . . . . Average Slot Usage (%) 84 | . 100 100 79 63 Engine 9 | . 14 14 11 . Treads 5 | . . . . 22 Leg 1 | . 11 . . . Wheel 1 | . 7 . . 1 Flight 19 | . 8 28 22 6 Device 18 | . 18 28 22 . Processor 2 | . . . . 10 Protection 1 | . . . . 4 Ballistic Gun 19 | . 28 27 15 10 Ballistic Cannon 1 | . . . 5 . Impact Weapon 2 | . . . . 8 Peak Build Rating 27 | 9 9 12 12 27 Average Rating 10 | 8 8 9 7 19 On Entrance 6 | 6 8 9 9 1 Naked Turns 13 | . . . . 13 Heaviest Build 12 | 12 12 8 10 12 Greatest Support 44 | 20 20 8 8 44 Greatest Overweight (x) 3 | . 1 . 2 3 Average Overweight (x) . | . . . . . Largest Inventory Capacity 8 | 8 8 5 5 5 Average Capacity 5 | 8 7 5 5 5 Most Carried 8 | 8 8 5 5 5 Average Carried 5 | 6 6 5 4 4 Final Capacity 8 | 8 5 5 5 5 Final Carried 8 | 8 5 5 3 4 Class Distribution -------------------- 92% | Mutant 7% | Gladiator Dominant Class ---------------- Mutant | -10/Materials Mutant | -10/Mines Mutant | -10/Subcaves Mutant | -8/Materials Resources | -11 -10 -10 -10 -8 ----------- Run | Yrd Mat Min Sub Mat Matter Collected 956 | 344 . . 326 286 Remotely . | . . . . . Salvage Created 734 | 288 . . 107 339 Parts 31 | 22 . . 2 7 Haulers Intercepted . | . . . . . Recyclers Shooed . | . . . . . Parts Field Recycled . | . . . . . Retrieved Matter . | . . . . . Parts Self-Destructed 10 | . . . 10 . Prevented . | . . . . . Kills | -11 -10 -10 -10 -8 ------- Run | Yrd Mat Min Sub Mat Combat Hostiles Destroyed 8 | . . . 3 5 Melee 1 | . . . . 1 Guns 1 | . . . 1 . Cannons 2 | . . . 2 . Classes Destroyed 6 | 3 . . 1 2 Worker 3 | 2 . . . 1 Tunneler 8 | 8 . . . . Recycler 2 | 1 . . . 1 Grunt 3 | . . . . 3 Sentry 2 | . . . . 2 Subdweller 3 | . . . 3 . Best Kill Streak 5 | 5 . . 3 4 Combat Bots Only 3 | . . . 3 2 Max Kills in Single Turn 1 | 1 . . 1 1 Gunslinging . | . . . . . Exploded . | . . . . . Melee 1 | . . . . 1 Uniques/NPCs Destroyed . | . . . . . Combat | -11 -10 -10 -10 -8 -------- Run | Yrd Mat Min Sub Mat Hostile Shots Fired 159 | . 7 . 43 109 Missed 44 | . 2 . 14 28 Damage Taken 2124 | . 57 . 626 1441 Core 781 | . 11 . 205 565 Absorbed by Shields . | . . . . . Redirected to Shielding 102 | . . . . 102 Core Remaining (%) 56 | 100 . . 13 . Volleys Fired 87 | 31 6 11 39 . Largest 2 | 2 2 1 2 . Hottest 59 | 40 40 20 59 . Shots Fired 155 | 62 12 11 70 . Gun 125 | 62 12 11 40 . Cannon 30 | . . . 30 . Launcher . | . . . . . Special . | . . . . . Kinetic 155 | 62 12 11 70 . Thermal . | . . . . . Explosive . | . . . . . Electromagnetic . | . . . . . Robot Hit Streak 26 | 4 1 . 26 . Robot Miss Streak 5 | 4 5 . . . Penetration Max . | . . . . . Secondary Targets . | . . . . . Shots Hit Robots 74 | 27 4 . 25 18 Core Hits 27 | 15 3 . 7 2 Critical Kills . | . . . . . Critical Parts Destroyed 4 | 1 . . . 3 Critical Strikes 5 | 1 . . 1 3 Destroy 1 | 1 . . . . Blast 1 | . . . 1 . Smash 3 | . . . . 3 Melee Attacks 26 | . . . . 26 Impact 26 | . . . . 26 Slashing . | . . . . . Piercing . | . . . . . Sneak Attacks 2 | . . . . 2 Combat Hostiles . | . . . . . Follow-up Attacks 2 | . . . . 2 Damage Inflicted 1482 | 300 49 . 310 823 Guns 439 | 300 49 . 90 . Cannons 220 | . . . 220 . Explosions . | . . . . . Melee 783 | . . . . 783 Ramming 40 | . . . . 40 Kinetic 659 | 300 49 . 310 . Thermal . | . . . . . Explosive . | . . . . . Electromagnetic . | . . . . . Impact 783 | . . . . 783 Slashing . | . . . . . Piercing . | . . . . . Highest Corruption . | . . . . . Average Corruption . | . . . . . Corruption Purged . | . . . . . Corruption Blocked . | . . . . . Overload Shots . | . . . . . Overflow Damage 244 | . . . . 244 Projectiles . | . . . . . Explosions . | . . . . . Melee 244 | . . . . 244 Knockbacks 6 | . . . 3 3 Impact 3 | . . . . 3 Kinetic 3 | . . . 3 . Secondary . | . . . . . Self-Inflicted Damage 17 | . . . . 17 Shots . | . . . . . Rammed 13 | . . . . 13 Targets Rammed 13 | . . . . 13 Kicked . | . . . . . Crushed . | . . . . . Highest Temperature 340 | . 10 . 340 . Average Temperature 124 | . 5 . 172 . Received Heat Transfer 1152 | . 30 . 663 459 Effects 1 | . . . 1 . Short Circuit 1 | . . . 1 . Siege Activations . | . . . . . Robots Corrupted 4 | . . . . 4 Combat Hostiles 4 | . . . . 4 Parts Fried 5 | . . . . 5 Impact Corruptions 9 | . . . . 9 Robots Melted . | . . . . . Combat Hostiles . | . . . . . Parts Melted . | . . . . . Heat Transferred . | . . . . . Parts Sabotaged . | . . . . . Parts Stolen . | . . . . . Parts Stripped . | . . . . . Power Chain Reactions . | . . . . . Alert | -11 -10 -10 -10 -8 ------- Run | Yrd Mat Min Sub Mat Peak Influence 175 | 55 56 21 . 175 Initial 35 | . 35 21 . . Average 45 | 34 46 19 . 89 Maximum Alert Level . | . . . . . Low Security (%) 100 | 100 100 100 . 100 Level 1 . | . . . . . Level 2 . | . . . . . Level 3 . | . . . . . Level 4 . | . . . . . Level 5 . | . . . . . High Security . | . . . . . Max Security . | . . . . . Squads Dispatched 3 | . 2 . . 1 Investigation 1 | . 1 . . . Extermination . | . . . . . Reinforcement 2 | . 1 . . 1 Assault . | . . . . . Garrison . | . . . . . Intercept . | . . . . . Searches Triggered . | . . . . . Construction Impeded . | . . . . . Haulers Reinforced . | . . . . . Active Scanning Responses . | . . . . . Cargo Convoy Interrupts . | . . . . . Stealth | -11 -10 -10 -10 -8 --------- Run | Yrd Mat Min Sub Mat Distress Signals 1 | . . . . 1 Communications Jammed . | . . . . . Distress Signals . | . . . . . Times Spotted 33 | . 5 . 9 19 Peak Tracking Total 9 | . 3 . 4 9 Tactical Retreats 5 | . . . 3 2 Traps | -11 -10 -10 -10 -8 ------- Run | Yrd Mat Min Sub Mat Traps Triggered . | . . . . . Indirectly . | . . . . . Trap Hack Attempts . | . . . . . Triggered . | . . . . . Disarmed . | . . . . . Reprogrammed . | . . . . . Reused . | . . . . . Traps Extracted . | . . . . . Installed . | . . . . . Triggered . | . . . . . Machines | -11 -10 -10 -10 -8 ---------- Run | Yrd Mat Min Sub Mat Machines Disabled 1 | . 1 . . . Max in Single Turn 1 | . 1 . . . Machines Repaired . | . . . . . Machines Dismantled . | . . . . . Machines Sabotaged . | . . . . . Overloaded Fab Kills . | . . . . . Hacking | -11 -10 -10 -10 -8 --------- Run | Yrd Mat Min Sub Mat Machines Accessed 4 | . 1 . 2 1 Terminals 2 | . 1 . . 1 Fabricators . | . . . . . Repair Stations . | . . . . . Recycling Units . | . . . . . Scanalyzers . | . . . . . Garrison Access . | . . . . . Total Hacks 13 | . 6 . 3 4 Successful 9 | . 4 . 3 2 Failed 4 | . 2 . . 2 Catastrophic 1 | . 1 . . . Database Lockouts . | . . . . . Manual 10 | . 6 . . 4 Terminals 10 | . 6 . . 4 Fabricators . | . . . . . Repair Stations . | . . . . . Recycling Units . | . . . . . Scanalyzers . | . . . . . Garrison Access . | . . . . . Terminal Hacks 3 | . . . 3 . Record 1 | . . . 1 . Open Door 1 | . . . 1 . Release Object 1 | . . . 1 . Fabricator Hacks . | . . . . . Repair Station Hacks . | . . . . . Recycling Unit Hacks . | . . . . . Scanalyzer . | . . . . . Garrison Access Hacks . | . . . . . Unauthorized Hacks 6 | . 4 . . 2 Terminals 6 | . 4 . . 2 Track 1 | . 1 . . . Botnet 2 | . 1 . . 1 Operators 1 | . 1 . . . Skim 2 | . 1 . . 1 Fabricators . | . . . . . Repair Stations . | . . . . . Recycling Units . | . . . . . Scanalyzers . | . . . . . Garrison Access . | . . . . . Data Cores Recovered . | . . . . . Used . | . . . . . Hacking Detections 1 | . 1 . . . Full Trace Events 1 | . 1 . . . Feedback Events . | . . . . . Feedback Blocked . | . . . . . Robot Schematics Acquired . | . . . . . Robots Built . | . . . . . Authchips . | . . . . . Time . | . . . . . Total Robot Build Rating . | . . . . . Part Schematics Acquired . | . . . . . Parts Built . | . . . . . Authchips . | . . . . . Time . | . . . . . Total Part Build Rating . | . . . . . Parts Repaired . | . . . . . Time . | . . . . . Parts Recycled . | . . . . . Recycled Matter . | . . . . . Retrieved Matter . | . . . . . Retrieved Components . | . . . . . Parts Scanalyzed . | . . . . . Part Schematics Acquired . | . . . . . Parts Damaged . | . . . . . Bothacking | -11 -10 -10 -10 -8 ------------ Run | Yrd Mat Min Sub Mat Used RIF Installer . | . . . . . Robots Hacked . | . . . . . Non-combat . | . . . . . Combat . | . . . . . Robot Hacks Applied . | . . . . . Relay Couplers Released . | . . . . . Fabnet Peak Effective % . | . . . . . Robots Rewired . | . . . . . Allies Hacked . | . . . . . Hacks Repelled . | . . . . . Allies | -11 -10 -10 -10 -8 -------- Run | Yrd Mat Min Sub Mat Total Allies . | . . . . . Largest Group . | . . . . . Highest-Rated Group . | . . . . . Highest-Rated Ally . | . . . . . Total Orders . | . . . . . Ally Attacks . | . . . . . Total Damage . | . . . . . Kills . | . . . . . Allies Corrupted . | . . . . . Allies Melted . | . . . . . Intel | -11 -10 -10 -10 -8 ------- Run | Yrd Mat Min Sub Mat Robot Analysis Total . | . . . . . Derelict Logs Recovered 2 | . . . 2 . Drone Launches . | . . . . . Drone Recoveries . | . . . . . Exploration | -11 -10 -10 -10 -8 ------------- Run | Yrd Mat Min Sub Mat Turns Passed 1659 | 309 130 436 468 316 Spaces Moved 1241 | 89 129 111 674 238 Core 101 | . . . 8 93 Treads 18 | . . . . 18 Legs 110 | 89 21 . . . Wheels 98 | . 52 . . 46 Hover . | . . . . . Flight 914 | . 56 111 666 81 Fastest Speed 37 | 120 37 37 37 37 Average Speed 60 | 120 73 37 45 86 Slowest Speed 240 | 120 120 37 150 240 Overloaded Moves . | . . . . . Propulsion Burnouts . | . . . . . Robots Hopped 6 | . . 4 2 . Cave-ins Triggered . | . . . . . Exploration Rate (%) 23 | 5 23 25 40 22 Regions Visited 4 Branch Regions 2 Pre-discovered Areas 1 | . . . 1 . Known Exits Taken . | . . . . . Unknown Exits Taken 4 | 1 1 1 1 . Scrap Searched 4 | . . . 4 . Spaces Dug . | . . . . . Terrain Destroyed . | . . . . . Melee . | . . . . . Projectile . | . . . . . AOE . | . . . . . Terrain Rammed . | . . . . . Walls Destroyed . | . . . . . Machines Disabled . | . . . . . Actions | -11 -10 -10 -10 -8 --------- Run | Yrd Mat Min Sub Mat Total 1960 | 235 154 489 766 316 Wait 517 | 109 . 368 33 7 Move 1227 | 88 128 104 669 238 Hop 4 | . . 2 2 . Pick Up 23 | 4 7 1 2 9 Fast Attach 5 | . . . 1 4 Attach 17 | 1 1 . 5 10 Detach 5 | . . . 2 3 Swap 24 | 1 4 2 11 6 Drop 14 | 1 8 1 2 2 Fire 87 | 31 6 11 39 . Melee 24 | . . . . 24 Ram 13 | . . . . 13 Kick . | . . . . . Crush . | . . . . . Escape Stasis . | . . . . . Rewire . | . . . . . Trap . | . . . . . Miscellaneous . | . . . . . Route ------- -11/Scrapyard -10/Materials -10/Mines -10/Subcaves -8/Materials History --------- Turn | Location | Event 10 | -11/Scrapyard | Discovered new exit (range 3) 310 | -11/Scrapyard | Entered Materials 311 | -10/Materials | Build established: Mutant 364 | -10/Materials | Discovered new exit (range 15) 440 | -10/Materials | Entered Mines 442 | -10/Mines | Assembled infested the area 447 | -10/Mines | Assisted by a Guerilla fighting off Assembled 471 | -10/Mines | A weapon hastily lodged in a ceiling crevice suddenly fell to the ground 856 | -10/Mines | Discovered new exit (range 7) 876 | -10/Mines | Entered Subcaves 884 | -10/Subcaves | Ambushed by Subdwellers from Twisted Machinery 927 | -10/Subcaves | Shifting Twisted Machinery released Battle Cannon 928 | -10/Subcaves | Shifting Twisted Machinery released Battle Cannon 947 | -10/Subcaves | A swath of the cavern ceiling suddenly collapsed 973 | -10/Subcaves | Shifting Twisted Machinery released Mak. Axe 1007 | -10/Subcaves | Shifting Twisted Machinery released Hvy. Battle Rifle 1044 | -10/Subcaves | Disturbed a concealed Subdweller 1127 | -10/Subcaves | Lost 3 parts (2n1w) 1203 | -10/Subcaves | Ambushed by Subdwellers from Twisted Machinery 1238 | -10/Subcaves | Core integrity fell below 50% 1285 | -10/Subcaves | Core integrity fell below 20% 1304 | -10/Subcaves | Lost 6 parts (1p1n2u2w) 1335 | -10/Subcaves | Discovered new exit (range 7) 1344 | -10/Subcaves | Entered Materials 1344 | -8/Materials | Evolved 4 slots: Propulsion x2, Utility x1, Weapon x1 1644 | -8/Materials | Core integrity fell below 50% 1654 | -8/Materials | Core integrity fell below 20% 1660 | -8/Materials | Destroyed by G-47 Trooper with Particle Gun Last Messages --------------- 01618_ Acquired Seismic Detector. 01625_ Adv. Treads destroyed. 01625_ Seismic Detector destroyed. 01625_ Knocked back. 01631_ Penetrated by Slug. 01631_ Knocked back. 01631_ Acquired 8 matter. 01633_ Penetrated by Slug. 01637_ Knocked back. 01637_ C-17 Slicer knocked back. 01638_ Knocked back. 01638_ Adv. Treads destroyed. 01638_ Knocked back. 01641_ Adv. Treads destroyed. 01643_ Adv. Treads severed. 01643_ Slug penetrates Wall. 01643_ Mak. Hammer severed. 01647_ Melee Analysis Suite severed. 01649_ Slammed into G-50 Soldier. 01650_ Slammed into G-47 Trooper. Map ----- +----------------------------------------------------+ | ???????????????????# #???????# #??????????# ???? | | ???????????????????# #???????# #??????????# ???? | | ???????????????????# #???????# #??????????# #??? | | ???????????????????# #???????# #??????????# #??? | | ???????????????????# #???????# #??????????# #??? | | ???????????????????# #???????# #??????????# #??? | | ???????????????????# #???????# #??????????# #?? | | ???????????????????# +??????##+########???# #?? | | ???????????????????# #??????# [=##### ## | | ???????????????????# #??????# %/" # / | | ???????????????????# #??????# ##### + | | ??????????????????? ??????# [[ #???# # | | ??????????????????? ??????+ [[ ""#???# # | | ??????????????????? ??????# [[ T"#??## ### | | ???????????????????## ##??????# ""#?## # | | ????????????????????? ????????# #?? | | ??????????????????????????????############## | | ??????????????????????????????????? # | | ???????????????????????????????????? """ ## | | ????????????????????#??????????#T ?"" # | | ????????????????????# ?????????#" """ !# ##? | | ????????????????????# ##??????????? # #? | | ????????????????????# c??????????????? ## ## | | ????????????????????# ?????????????##+## # | | ????????????????????# ############## /= # | | ????????????????????# g@%%%%g%g% c # | | ????????????????????####/##############+#### ## | | ?????????????????????? ????????????? ??######? | | ?????????????????????# ?????????????? ????????? | | ?????????????????????# "????????????? """ ???????? | | ?????????????????????# ??????????????"""""???????? | | ?????????????????????# ?????????????""" " ??????? | | ?????????????????????#?????????????? /??????? | | ????????????????????????????????????#######??????? | | | | | | | | | | | | | | | | | | | | | | | | | | | | | | | | | +----------------------------------------------------+ Best States ------------- Heat Dissipation 31 Energy Generation 10 Energy Capacity 125 Matter Stores 300 Matter Capacity 300 Sight Range 16 Terrain Scan Range 16 Terrain Scan Density 10 Weapon Shielding 66 Evasion (%) 62 Melee Accuracy 10 Recoil Reduction 2 Item Schematics ----------------- None Robot Schematics ------------------ None Fabricated ------------ Nothing Alien Tech Used ----------------- None Achievements -------------- None Challenges ------------ None Game ------ Seed UltimateNeutronKit Manual? 0 Play Time 00:28:54 Cumulative 93.4 hours Start 2024.12.01 @ 20:39:43 End 2024.12.01 @ 21:07:20 Sessions 1 Manual Loads 0 Difficulty Rogue Special Mode None Game No. 136 Rogue 136 Adventurer 0 Explorer 0 Win Type - Total 0 Types 0/0/0/0/0/0/0/0/0 Lore% 56 Gallery% 46 Achievement% 33 Wizard Run 0 Options --------- Layout 1 ASCII 0 Keyboard 0 Movement Mouse Keybinds 0 Fullscreen 1 Font 24/Smallcaps Map View 50x40 Zoom Use 0% Tactical HUD 1 Map Filters NONE Filters NONE Steam 1 RUN: e5843fb2-3f51-4172-ae09-8606197917f0